lending/lending_fUSD_20250707
["ID","MTS","AMOUNT","RATE_DAILY","PERIOD"]
[370273877,1751932276307,-675.01,0.00035616,7]
[370273878,1751932276317,-900.84,0.00035616,7]
[370273879,1751932276327,-492.12,0.00035616,7]
[370273880,1751932276337,-1752.72,0.00035616,7]
[370273881,1751932276346,-2493.63,0.00035616,7]
[370273882,1751932276355,-1887.15,0.00035616,7]
[370273883,1751932276364,-708.46,0.00035616,7]
[370273884,1751932276374,-470.44,0.00035616,7]
[370273885,1751932276383,-282.97434726,0.00035616,7]
[370273886,1751932276392,-1541.03,0.00035616,7]
[370273887,1751932276401,-1006.62,0.00035616,7]
[370273888,1751932276410,-460.0,0.00035616,7]
[370273889,1751932276420,-1175.18,0.00035616,7]
[370273890,1751932276429,-1610.94,0.00035616,7]
[370273891,1751932276438,-5714.33,0.00035616,7]
[370273892,1751932276448,-636.25,0.00035616,7]
[370273893,1751932276457,-477.5,0.00035616,7]
[370273894,1751932276466,-735.19,0.00035616,7]
[370273895,1751932276476,-1077.56,0.00035616,7]
[370273896,1751932276485,-151.0,0.00035616,7]
[370273897,1751932276495,-653.15,0.00035616,7]
[370273898,1751932276504,-627.87,0.00035616,7]
[370273899,1751932276514,-1549.02,0.00035616,7]
[370273900,1751932276524,-627.1,0.00035616,7]
[370273901,1751932276534,-598.21,0.00035616,7]
[370273902,1751932276543,-972.41,0.00035616,7]
[370273903,1751932276553,-580.38,0.00035616,7]
[370273904,1751932276562,-1021.08,0.00035616,7]
[370273905,1751932276572,-1797.84,0.00035616,7]
[370273906,1751932276582,-565.81,0.00035616,7]
[370273907,1751932276591,-151.000001,0.00035616,7]
[370273908,1751932276600,-1150.73,0.00035616,7]
[370273909,1751932276609,-1574.73,0.00035616,7]
[370273910,1751932276619,-1100.46,0.00035616,7]
[370273911,1751932276629,-514.63,0.00035616,7]
[370273912,1751932276638,-460.0,0.00035616,7]
[370273913,1751932276647,-620.92,0.00035616,7]
[370273914,1751932276656,-1768.2,0.00035616,7]
[370273915,1751932276666,-2977.56,0.00035616,7]
[370273916,1751932276676,-165.87766027,0.00035616,7]
[370273917,1751932276686,-1358.69,0.00035616,7]
[370273918,1751932276695,-151.0,0.00035616,7]
[370273919,1751932276704,-300.988486,0.00035616,7]
[370273920,1751932276713,-805.78,0.00035616,7]
[370273921,1751932276723,-376.6678734,0.00035616,7]
[370273922,1751932276732,-630.58,0.00035616,7]
[370273923,1751932276741,-563.18,0.00035616,7]
[370273924,1751932276750,-213.87,0.00035681,120]
[370273925,1751932276759,-16842.89,0.000357,9]
[370273926,1751932276768,-162.5,0.00035772,2]
[370273927,1751932276778,-460.0,0.00035778,7]
[370273928,1751932276787,-538.36,0.00035778,7]
[370273929,1751932276796,-536.49,0.00035778,7]
[370273930,1751932276805,-562.59,0.00035778,7]
[370273931,1751932276814,-460.0,0.00035778,7]
[370273932,1751932276824,-554.02,0.00035778,7]
[370273933,1751932276833,-541.81,0.00035778,7]
[370273934,1751932276842,-744.71,0.00035778,7]
[370273935,1751932276851,-460.0,0.00035778,7]
[370273936,1751932276860,-460.0,0.00035778,7]
[370273937,1751932276870,-1609.49699303,0.00035797,33]
[370273938,1751932276879,-683.0,0.00035889,7]
[370273939,1751932276889,-1305.0,0.00035889,7]
[370273940,1751932276898,-460.0,0.0003589,7]
[370273941,1751932276908,-413.90246886,0.0003589,7]
[370273942,1751932276917,-561.32,0.0003589,7]
[370273943,1751932276927,-744.4,0.0003589,7]
[370273944,1751932276936,-1412.57,0.0003589,7]
[370273945,1751932276946,-476.33,0.0003589,7]
[370273946,1751932276955,-460.0,0.0003589,7]
[370273947,1751932276965,-515.53,0.0003589,7]
[370273948,1751932276974,-486.82,0.0003589,7]
[370273949,1751932276983,-598.34,0.0003589,7]
[370273950,1751932276992,-496.94,0.0003589,7]
[370273951,1751932277002,-460.0,0.0003589,7]
[370273952,1751932277011,-1115.65,0.0003589,7]
[370273953,1751932277021,-798.58,0.0003589,7]
[370273954,1751932277031,-15835.18,0.0003589,7]
[370273955,1751932277040,-495.98,0.0003589,7]
[370273956,1751932277050,-709.17,0.0003589,7]
[370273957,1751932277060,-518.97,0.0003589,7]
[370273958,1751932277069,-675.01,0.0003589,7]
[370273959,1751932277078,-900.84,0.0003589,7]
[370273960,1751932277088,-492.12,0.0003589,7]
[370273961,1751932277097,-1752.72,0.0003589,7]
[370273962,1751932277107,-2493.63,0.0003589,7]
[370273963,1751932277116,-1887.15,0.0003589,7]
[370273964,1751932277126,-708.46,0.0003589,7]
[370273965,1751932277136,-470.44,0.0003589,7]
[370273966,1751932277192,-151.0,0.0003589,7]
[370273967,1751932277201,-1541.03,0.0003589,7]
[370273968,1751932277211,-1006.62,0.0003589,7]
[370273969,1751932277220,-204.6,0.0003589,7]
[370273970,1751932277230,-1175.18,0.0003589,7]
[370273971,1751932277239,-1610.94,0.0003589,7]
[370273972,1751932277248,-5714.33,0.0003589,7]
[370273973,1751932277261,-636.25,0.0003589,7]
[370273974,1751932277270,-477.5,0.0003589,7]
[370273975,1751932277279,-735.19,0.0003589,7]
[370273976,1751932277288,-1077.56,0.0003589,7]
[370273977,1751932277299,-653.15,0.0003589,7]
[370273978,1751932277308,-627.87,0.0003589,7]
[370273979,1751932277317,-1549.02,0.0003589,7]
[370273980,1751932277327,-627.1,0.0003589,7]
[370273981,1751932277336,-598.21,0.0003589,7]
[370273982,1751932277346,-972.41,0.0003589,7]
[370273983,1751932277355,-580.38,0.0003589,7]
[370273984,1751932277364,-1021.08,0.0003589,7]
[370273985,1751932277373,-1797.84,0.0003589,7]
[370273986,1751932277382,-565.81,0.0003589,7]
[370273987,1751932277392,-1150.73,0.0003589,7]
[370273988,1751932277401,-1574.73,0.0003589,7]
[370273989,1751932277411,-1100.46,0.0003589,7]
[370273990,1751932277420,-514.63,0.0003589,7]
[370273991,1751932277430,-460.0,0.0003589,7]
[370273992,1751932277439,-620.92,0.0003589,7]
[370273993,1751932277448,-1768.2,0.0003589,7]
[370273994,1751932277458,-2977.56,0.0003589,7]
[370273995,1751932277468,-338.131309,0.0003589,7]
[370273996,1751932277478,-1358.69,0.0003589,7]
[370273997,1751932277487,-338.131309,0.0003589,7]
[370273998,1751932277496,-805.78,0.0003589,7]
[370273999,1751932277506,-630.58,0.0003589,7]
[370274000,1751932277515,-563.18,0.0003589,7]
[370274001,1751932277525,-3677.0,0.00035922,7]
[370274002,1751932277534,-162.5,0.00035939,2]
[370274003,1751932277544,-460.0,0.00036052,7]
[370274004,1751932277553,-538.36,0.00036052,7]
[370274005,1751932277562,-536.49,0.00036052,7]
[370274006,1751932277572,-562.59,0.00036052,7]
[370274007,1751932277581,-557.37,0.00036052,7]
[370274008,1751932277591,-554.02,0.00036052,7]
[370274009,1751932277601,-541.81,0.00036052,7]
[370274010,1751932277610,-744.71,0.00036052,7]
[370274011,1751932277620,-460.0,0.00036052,7]
[370274012,1751932277630,-460.0,0.00036052,7]
[370274013,1751932277640,-151.0,0.00036053,7]
[370274014,1751932277649,-151.0,0.00036053,7]
[370274015,1751932277659,-151.0,0.00036053,7]
[370274016,1751932277668,-203.080952,0.00036053,7]
[370274017,1751932277677,-151.0,0.00036053,7]
[370274018,1751932277687,-196.817152,0.00036053,7]
[370274019,1751932277696,-151.0,0.00036053,7]
[370274020,1751932277706,-151.0,0.00036053,7]
[370274021,1751932277715,-154.028049,0.00036053,7]
[370274022,1751932277725,-154.028049,0.00036053,7]
[370274023,1751932277734,-500.0,0.00036084,8]
[370274024,1751932277743,-162.5,0.00036105,2]
[370274025,1751932277753,-683.0,0.00036163,7]
[370274026,1751932277763,-1305.0,0.00036163,7]
[370274027,1751932277772,-548.25851799,0.00036164,7]
[370274028,1751932277782,-561.32,0.00036164,7]
[370274029,1751932277792,-744.4,0.00036164,7]
[370274030,1751932277801,-1412.57,0.00036164,7]
[370274031,1751932277811,-476.33,0.00036164,7]
[370274032,1751932277821,-273.14248216,0.00036164,7]
[370274033,1751932277830,-515.53,0.00036164,7]
[370274034,1751932277839,-486.82,0.00036164,7]
[370274035,1751932277849,-598.34,0.00036164,7]
[370274036,1751932277860,-496.94,0.00036164,7]
[370274037,1751932277870,-524.18586425,0.00036164,7]
[370274038,1751932277880,-1115.65,0.00036164,7]
[370274039,1751932277891,-798.58,0.00036164,7]
[370274040,1751932277902,-15835.18,0.00036164,7]
[370274041,1751932277913,-495.98,0.00036164,7]
[370274042,1751932277924,-709.17,0.00036164,7]
[370274043,1751932277934,-518.97,0.00036164,7]
[370274044,1751932277944,-675.01,0.00036164,7]
[370274045,1751932277955,-900.84,0.00036164,7]
[370274046,1751932277966,-492.12,0.00036164,7]
[370274047,1751932277976,-1752.72,0.00036164,7]
[370274048,1751932277986,-2493.63,0.00036164,7]
[370274049,1751932277995,-1887.15,0.00036164,7]
[370274050,1751932278004,-708.46,0.00036164,7]
[370274051,1751932278014,-470.44,0.00036164,7]
[370274052,1751932278023,-1541.03,0.00036164,7]
[370274053,1751932278034,-1006.62,0.00036164,7]
[370274054,1751932278043,-1175.18,0.00036164,7]
[370274055,1751932278051,-1610.94,0.00036164,7]
[370274056,1751932278061,-5714.33,0.00036164,7]
[370274057,1751932278070,-636.25,0.00036164,7]
[370274058,1751932278079,-477.5,0.00036164,7]
[370274059,1751932278088,-735.19,0.00036164,7]
[370274060,1751932278097,-1077.56,0.00036164,7]
[370274061,1751932278107,-653.15,0.00036164,7]
[370274062,1751932278116,-627.87,0.00036164,7]
[370274063,1751932278126,-1549.02,0.00036164,7]
[370274064,1751932278136,-627.1,0.00036164,7]
[370274065,1751932278145,-598.21,0.00036164,7]
[370274066,1751932278155,-972.41,0.00036164,7]
[370274067,1751932278164,-580.38,0.00036164,7]
[370274068,1751932278173,-1021.08,0.00036164,7]
[370274069,1751932278183,-1797.84,0.00036164,7]
[370274070,1751932278192,-565.81,0.00036164,7]
[370274071,1751932278202,-1150.73,0.00036164,7]
[370274072,1751932278212,-1574.73,0.00036164,7]
[370274073,1751932278222,-1100.46,0.00036164,7]
[370274074,1751932278231,-514.63,0.00036164,7]
[370274075,1751932278240,-167.62,0.00036164,7]
[370274076,1751932278251,-620.92,0.00036164,7]
[370274077,1751932278265,-1768.2,0.00036164,7]
[370274078,1751932278275,-2977.56,0.00036164,7]
[370274079,1751932278285,-1358.69,0.00036164,7]
[370274080,1751932278295,-805.78,0.00036164,7]
[370274081,1751932278305,-630.58,0.00036164,7]
[370274082,1751932278315,-563.18,0.00036164,7]
[370274083,1751932278324,-275.98637604,0.000362,2]
[370274084,1751932278335,-1812.0,0.00036207,2]
[370274085,1751932278345,-162.5,0.00036271,2]
[370274086,1751932278355,-151.0,0.00036272,7]
[370274087,1751932278365,-151.0,0.00036272,7]
[370274088,1751932278375,-151.0,0.00036272,7]
[370274089,1751932278385,-151.0,0.00036272,7]
[370274090,1751932278395,-301.235212,0.00036272,7]
[370274091,1751932278405,-301.235212,0.00036272,7]
[370274092,1751932278415,-151.0,0.00036272,7]
[370274093,1751932278425,-524.317167,0.00036272,7]
[370274094,1751932278434,-524.317167,0.00036272,7]
[370274095,1751932278444,-388.10151329,0.00036326,7]
[370274096,1751932278454,-538.36,0.00036326,7]
[370274097,1751932278464,-536.49,0.00036326,7]
[370274098,1751932278474,-562.59,0.00036326,7]
[370274099,1751932278484,-554.02,0.00036326,7]
[370274100,1751932278494,-541.81,0.00036326,7]
[370274101,1751932278504,-744.71,0.00036326,7]
[370274102,1751932278514,-224.08,0.00036326,7]
[370274103,1751932278524,-504.83,0.00036326,7]
[370274104,1751932278534,-208.0,0.00036327,7]
[370274105,1751932278544,-151.0,0.00036327,7]
[370274106,1751932278555,-151.973078,0.00036327,7]
[370274107,1751932278565,-151.0,0.00036327,7]
[370274108,1751932278574,-151.0,0.00036327,7]
[370274109,1751932278584,-151.0,0.00036327,7]
[370274110,1751932278594,-151.0,0.00036327,7]
[370274111,1751932278604,-151.0,0.00036327,7]
[370274112,1751932278614,-4000.0,0.00036416,30]
[370274113,1751932278624,-697.24777277,0.00036437,7]
[370274114,1751932278634,-1306.0,0.00036437,7]
[370274115,1751932278644,-162.5,0.00036438,2]
[370274116,1751932278654,-561.41169976,0.00036438,7]
[370274117,1751932278664,-744.60211297,0.00036438,7]
[370274118,1751932278674,-1412.78787133,0.00036438,7]
[370274119,1751932278684,-476.44328467,0.00036438,7]
[370274120,1751932278694,-151.0,0.00036438,7]
[370274121,1751932278703,-151.0,0.00036438,7]
[370274122,1751932278713,-515.69593743,0.00036438,7]
[370274123,1751932278723,-151.0,0.00036438,7]
[370274124,1751932278733,-486.89700541,0.00036438,7]
[370274125,1751932278743,-151.0,0.00036438,7]
[370274126,1751932278752,-598.43716985,0.00036438,7]
[370274127,1751932278762,-497.1397475,0.00036438,7]
[370274128,1751932278772,-1115.79498061,0.00036438,7]
[370274129,1751932278782,-798.68476366,0.00036438,7]
[370274130,1751932278792,-15835.21552828,0.00036438,7]
[370274131,1751932278803,-496.05,0.00036438,7]
[370274132,1751932278813,-709.38,0.00036438,7]
[370274133,1751932278822,-518.98544004,0.00036438,7]
[370274134,1751932278832,-675.14182444,0.00036438,7]
[370274135,1751932278842,-900.94,0.00036438,7]
[370274136,1751932278852,-492.3159984,0.00036438,7]
[370274137,1751932278862,-1752.84229118,0.00036438,7]
[370274138,1751932278872,-2493.68041434,0.00036438,7]
[370274139,1751932278882,-1887.34775769,0.00036438,7]
[370274140,1751932278892,-708.69,0.00036438,7]
[370274141,1751932278902,-470.53196074,0.00036438,7]
[370274142,1751932278912,-1541.05129482,0.00036438,7]
[370274143,1751932278922,-1006.62541381,0.00036438,7]
[370274144,1751932278931,-1175.31,0.00036438,7]
[370274145,1751932278941,-1611.11,0.00036438,7]
[370274146,1751932278951,-5714.40942221,0.00036438,7]
[370274147,1751932278961,-636.43,0.00036438,7]
[370274148,1751932278971,-477.65261821,0.00036438,7]
[370274149,1751932278980,-735.32009506,0.00036438,7]
[370274150,1751932278990,-1077.62888643,0.00036438,7]
[370274151,1751932278999,-653.290895,0.00036438,7]
[370274152,1751932279009,-628.08,0.00036438,7]
[370274153,1751932279019,-1549.25926874,0.00036438,7]
[370274154,1751932279029,-627.14104353,0.00036438,7]
[370274155,1751932279038,-598.38414292,0.00036438,7]
[370274156,1751932279048,-972.47,0.00036438,7]
[370274157,1751932279058,-580.44,0.00036438,7]
[370274158,1751932279067,-1021.23195937,0.00036438,7]
[370274159,1751932279077,-1797.88789846,0.00036438,7]
[370274160,1751932279087,-565.84701875,0.00036438,7]
[370274161,1751932279096,-1150.9697621,0.00036438,7]
[370274162,1751932279106,-1574.916742,0.00036438,7]
[370274163,1751932279116,-1100.65190036,0.00036438,7]
[370274164,1751932279126,-514.84476105,0.00036438,7]
[370274165,1751932279135,-621.11,0.00036438,7]
[370274166,1751932279145,-1768.38499927,0.00036438,7]
[370274167,1751932279155,-2977.77186894,0.00036438,7]
[370274168,1751932279165,-1358.75683294,0.00036438,7]
[370274169,1751932279175,-805.9366406,0.00036438,7]
[370274170,1751932279184,-630.76252535,0.00036438,7]
[370274171,1751932279194,-563.25,0.00036438,7]
[370274172,1751932279204,-1000.0,0.000365,7]
[370274173,1751932279214,-538.40944369,0.000366,7]
[370274174,1751932279224,-536.56153146,0.000366,7]
[370274175,1751932279234,-562.69,0.000366,7]
[370274176,1751932279244,-554.10125011,0.000366,7]
[370274177,1751932279255,-541.94701523,0.000366,7]
[370274178,1751932279267,-744.80396115,0.000366,7]
[370274179,1751932279277,-162.5,0.00036604,2]
[370274180,1751932279287,-1609.49699303,0.00036624,35]
[370274181,1751932279297,-411.13185186,0.00036679,2]
[370274182,1751932279307,-3306.48738182,0.00036682,9]
[370274183,1751932279318,-1000.0,0.000367,7]
[370274184,1751932279328,-162.5,0.00036771,2]
[370274185,1751932279339,-21219.05525169,0.00036918,2]
[370274186,1751932279349,-689.92431985,0.00036918,2]
[370274187,1751932279359,-2898.24416017,0.00036918,2]
[370274188,1751932279368,-159.6579008,0.00036918,90]
[370274189,1751932279378,-236.86259043,0.00036918,7]
[370274190,1751932279388,-162.5,0.00036937,2]
[370274191,1751932279398,-150.63842598,0.00037,5]
[370274192,1751932279407,-5247.0,0.00037,117]
[370274193,1751932279418,-500.0,0.00037081,10]
[370274194,1751932279428,-162.5,0.00037103,2]
[370274195,1751932279438,-300.0,0.00037147,10]
[370274196,1751932279449,-151.0,0.00037148,7]
[370274197,1751932279460,-151.0,0.00037148,7]
[370274198,1751932279469,-151.0,0.00037148,7]
[370274199,1751932279478,-151.0,0.00037148,7]
[370274200,1751932279488,-155.673599,0.00037148,7]
[370274201,1751932279497,-155.673599,0.00037148,7]
[370274202,1751932279507,-151.0,0.00037148,7]
[370274203,1751932279517,-151.0,0.00037148,7]
[370274204,1751932279527,-151.0,0.00037148,7]
[370274205,1751932279537,-151.0,0.00037148,7]
[370274206,1751932279548,-2498.138129,0.00037148,7]
[370274207,1751932279559,-2498.138129,0.00037148,7]
[370274208,1751932279569,-166.724492,0.00037148,7]
[370274209,1751932279581,-166.724492,0.00037148,7]
[370274210,1751932279593,-1023.409884,0.00037148,7]
[370274211,1751932279602,-151.0,0.00037148,7]
[370274212,1751932279613,-151.0,0.00037148,7]
[370274213,1751932279623,-151.0,0.00037148,7]
[370274214,1751932279634,-737.320309,0.00037148,7]
[370274215,1751932279645,-737.320309,0.00037148,7]
[370274216,1751932279655,-151.0,0.00037148,7]
[370274217,1751932279666,-1000.0,0.000372,7]
[370274218,1751932279676,-1000.0,0.000372,7]
[370274219,1751932279686,-1943.0,0.000372,7]
[370274220,1751932279696,-354.0,0.00037239,120]
[370274221,1751932279706,-1812.0,0.00037241,7]
[370274222,1751932279717,-162.5,0.0003727,2]
[370274223,1751932279727,-1812.0,0.00037336,120]
[370274224,1751932279738,-1000.0,0.000374,7]
[370274225,1751932279749,-162.5,0.00037436,2]
[370274226,1751932279759,-354.0,0.0003745,2]
[370274227,1751932279769,-1609.49699303,0.00037452,36]
[370274228,1751932279780,-152.0,0.00037485,3]
[370274229,1751932279789,-2000.0,0.000375,2]
[370274230,1751932279799,-4229.0220703,0.0003759,2]
[370274231,1751932279809,-1000.0,0.000376,7]
[370274232,1751932279818,-1000.0,0.000376,7]
[370274233,1751932279828,-162.5,0.00037602,2]
[370274234,1751932279837,-151.0,0.00037646,7]
[370274235,1751932279847,-151.0,0.00037646,7]
[370274236,1751932279856,-151.0,0.00037646,7]
[370274237,1751932279867,-151.0,0.00037646,7]
[370274238,1751932279878,-151.0,0.00037646,7]
[370274239,1751932279888,-2498.138129,0.00037646,7]
[370274240,1751932279898,-2498.138129,0.00037646,7]
[370274241,1751932279909,-152.657234,0.00037646,7]
[370274242,1751932279918,-166.724492,0.00037646,7]
[370274243,1751932279930,-166.724492,0.00037646,7]
[370274244,1751932279940,-1023.409884,0.00037646,7]
[370274245,1751932279951,-151.853944,0.00037646,7]
[370274246,1751932279962,-151.0,0.00037646,7]
[370274247,1751932279972,-151.0,0.00037646,7]
[370274248,1751932280105,-151.0,0.00037646,7]
[370274249,1751932280124,-151.0,0.00037646,7]
[370274250,1751932280135,-151.0,0.00037646,7]
[370274251,1751932280145,-151.0,0.00037646,7]
[370274252,1751932280155,-151.0,0.00037646,7]
[370274253,1751932280164,-151.0,0.00037646,7]
[370274254,1751932280175,-151.0,0.00037646,7]
[370274255,1751932280185,-737.320309,0.00037646,7]
[370274256,1751932280194,-737.320309,0.00037646,7]
[370274257,1751932280205,-151.0,0.00037646,7]
[370274258,1751932280215,-301.235212,0.00037646,7]
[370274259,1751932280226,-301.235212,0.00037646,7]
[370274260,1751932280235,-151.0,0.00037646,7]
[370274261,1751932280244,-151.0,0.00037646,7]
[370274262,1751932280254,-524.317167,0.00037646,7]
[370274263,1751932280266,-524.317167,0.00037646,7]
[370274264,1751932280275,-150.0,0.00037649,61]
[370274265,1751932280284,-300.0,0.00037652,10]
[370274266,1751932280293,-156.607917,0.00037653,7]
[370274267,1751932280303,-151.0,0.00037653,7]
[370274268,1751932280312,-151.0,0.00037653,7]
[370274269,1751932280321,-151.0,0.00037653,7]
[370274270,1751932280332,-151.0,0.00037653,7]
[370274271,1751932280343,-190.539864,0.00037653,7]
[370274272,1751932280354,-151.0,0.00037653,7]
[370274273,1751932280363,-151.67464,0.00037653,7]
[370274274,1751932280372,-151.669338,0.00037653,7]
[370274275,1751932280381,-151.0,0.00037653,7]
[370274276,1751932280390,-151.0,0.00037653,7]
[370274277,1751932280400,-151.0,0.00037653,7]
[370274278,1751932280409,-151.0,0.00037653,7]
[370274279,1751932280418,-155.673599,0.00037653,7]
[370274280,1751932280428,-155.673599,0.00037653,7]
[370274281,1751932280437,-214.770302,0.00037653,7]
[370274282,1751932280446,-151.0,0.00037653,7]
[370274283,1751932280456,-151.0,0.00037653,7]
[370274284,1751932280465,-151.0,0.00037653,7]
[370274285,1751932280475,-151.0,0.00037653,7]
[370274286,1751932280484,-151.0,0.00037653,7]
[370274287,1751932280493,-174.135731,0.00037653,7]
[370274288,1751932280502,-154.028049,0.00037653,7]
[370274289,1751932280511,-154.028049,0.00037653,7]
[370274290,1751932280521,-24923.036579,0.00037656,2]
[370274291,1751932280531,-938.86615896,0.00037682,31]
[370274292,1751932280540,-159.83987498,0.00037682,2]
[370274293,1751932280549,-311.92680622,0.00037682,120]
[370274294,1751932280559,-2795.53101708,0.00037682,2]
[370274295,1751932280568,-362.16393079,0.00037682,2]
[370274296,1751932280579,-10140.85927495,0.00037682,30]
[370274297,1751932280589,-1909.27451025,0.00037682,2]
[370274298,1751932280598,-10850.67596206,0.00037682,15]
[370274299,1751932280608,-3558.1070271,0.00037682,15]
[370274300,1751932280968,-814.6206314,0.00019801,2]
[370274301,1751932280977,-152.71658259,0.00021966,2]
[370274302,1751932280987,-673.68,0.00030136,7]
[370274303,1751932280996,-673.68,0.0003041,7]
[370274304,1751932281005,-1076.28,0.00031506,7]
[370274305,1751932281015,-1482.7,0.0003178,7]
[370274306,1751932281024,-619.32278601,0.0003178,7]
[370274307,1751932281035,-447.09240001,0.0003178,7]
[370274308,1751932281432,-177.94470254,0.00030136,7]
[370274309,1751932281443,-501.3,0.00030136,7]
[370274310,1751932281454,-594.77020141,0.00030684,7]
[370274311,1751932281477,-78.90979859,0.00030684,7]
[370274312,1751932281487,-453.93331127,0.00030958,7]
[370274313,1751932281498,-219.74668873,0.00030958,7]
[370274314,1751932281507,-673.68,0.00031232,7]
[370274315,1751932281517,-405.24522093,0.00031506,7]
[370274316,1751932281528,-268.43477907,0.00031506,7]
[370274317,1751932281538,-9.86481398,0.0003178,7]
[370274318,1751932281547,-673.68,0.0003178,7]
[370274319,1751932281557,-1482.7,0.00032054,7]
[370274320,1751932281567,-1076.28,0.00032054,7]
[370274321,1751932281576,-673.68,0.00032054,7]
[370274322,1751932281586,-1482.7,0.00032328,7]
[370274323,1751932281595,-1076.28,0.00032328,7]
[370274324,1751932281604,-151.0,0.00032328,7]
[370274325,1751932281613,-619.92215021,0.00032328,7]
[370274326,1751932281624,-53.75784979,0.00032328,7]
[370274327,1751932281634,-393.75898626,0.00032602,7]
[370274328,1751932281646,-417.74591911,0.00032602,7]
[370274329,1751932281657,-78.00509463,0.00032602,7]
[370274330,1751932281667,-1482.7,0.00032602,7]
[370274331,1751932281677,-151.0,0.00032602,7]
[370274332,1751932281686,-786.61954669,0.00032602,7]
[370274333,1751932281698,-289.66045331,0.00032602,7]
[370274334,1751932281708,-889.51,0.00032876,7]
[370274335,1751932281717,-1482.7,0.00032876,7]
[370274336,1751932281727,-1076.28,0.00032876,7]
[370274337,1751932281737,-889.51,0.0003315,7]
[370274338,1751932281746,-1482.7,0.0003315,7]
[370274339,1751932281755,-1076.28,0.0003315,7]
[370274340,1751932281765,-889.51,0.00033424,7]
[370274341,1751932281775,-1482.7,0.00033424,7]
[370274342,1751932281785,-1076.28,0.00033424,7]
[370274343,1751932281794,-889.51,0.00033698,7]
[370274344,1751932281804,-1482.7,0.00033698,7]
[370274345,1751932281814,-1076.28,0.00033698,7]
[370274346,1751932281822,-889.51,0.00033972,7]
[370274347,1751932281832,-1482.7,0.00033972,7]
[370274348,1751932281841,-1076.28,0.00033972,7]
[370274349,1751932281851,-285.896174,0.00033972,7]
[370274350,1751932281860,-889.51,0.00034246,7]
[370274351,1751932281869,-1482.7,0.00034246,7]
[370274352,1751932281878,-1076.28,0.00034246,7]
[370274353,1751932281887,-889.51,0.0003452,7]
[370274354,1751932281897,-1482.7,0.0003452,7]
[370274355,1751932281907,-1076.28,0.0003452,7]
[370274356,1751932281916,-889.51,0.00034794,7]
[370274357,1751932281926,-1482.7,0.00034794,7]
[370274358,1751932281935,-1076.28,0.00034794,7]
[370274359,1751932281945,-889.51,0.00035068,7]
[370274360,1751932281954,-1076.28,0.00035068,7]
[370274361,1751932281963,-1482.7,0.00035068,7]
[370274362,1751932281972,-889.51,0.00035342,7]
[370274363,1751932281982,-889.51,0.00035616,7]
[370274364,1751932281991,-889.51,0.0003589,7]
[370274365,1751932282000,-889.51,0.00036164,7]
[370274366,1751932282009,-889.54224417,0.00036438,7]
[370274367,1751932282018,-134933.31514588,0.00037682,15]
[370274368,1751932282027,-1711.46433548,0.00037682,2]
[370274369,1751932282036,-227.91593658,0.00037682,120]
[370274370,1751932282045,-77247.31379356,0.00037682,5]
[370274371,1751932282057,-2884.13548166,0.00037682,5]
[370274372,1751932282075,-1076.28,0.00035342,7]
[370274373,1751932282085,-1482.7,0.00035342,7]
[370274374,1751932282094,-331.49036556,0.00037682,5]
[370274375,1751932282105,-10023.87454,0.00037682,5]
[370274377,1751932561860,158.21,0.00013699,2]